bitfinex-derivatives/quotes_BTCF0:USTF0_20250211
["timestamp","ask_amount","ask_price","bid_price","bid_amount"]
[1739266409225,0.2036564,98190.0,98189.0,0.24428531]
[1739266411125,0.2046564,98190.0,98189.0,0.24828531]
[1739266411426,0.2056564,98190.0,98189.0,0.24828531]
[1739266411725,0.2056564,98190.0,98189.0,0.004]
[1739266412131,0.001,98190.0,98182.0,0.3608]
[1739266412324,0.2056564,98190.0,98189.0,0.004]
[1739266414117,0.2036656,98186.0,98183.0,0.0369]
[1739266414826,0.2036656,98186.0,98183.0,0.0329]
[1739266415027,0.01038035,98190.0,98183.0,0.0329]
[1739266415333,0.2036683,98185.0,98183.0,0.0369]
[1739266416933,0.2036683,98185.0,98183.0,0.004]
[1739266417127,0.2036731,98182.0,98181.0,0.0321]
[1739266418327,0.2046731,98182.0,98181.0,0.0361]
[1739266419433,0.2056731,98182.0,98181.0,0.0361]
[1739266437856,0.2056731,98182.0,98181.0,0.04664764]
[1739266439069,0.2056731,98182.0,98181.0,0.01454764]
[1739266439571,0.2056731,98182.0,98181.0,0.01452418]
[1739266440766,0.2056731,98182.0,98181.0,0.004]
[1739266448372,0.002,98182.0,98181.0,0.004]
[1739266448874,0.002,98182.0,98181.0,0.01458071]
[1739266449571,0.2056731,98182.0,98181.0,0.01458071]
[1739266455879,0.2056731,98182.0,98181.0,0.004]
[1739266456062,0.2056731,98182.0,98181.0,0.01467546]
[1739266457872,0.2056731,98182.0,98181.0,0.01464175]
[1739266459376,0.2056731,98182.0,98181.0,0.004]
[1739266462773,0.2046731,98182.0,98181.0,0.004]
[1739266462976,0.2056731,98182.0,98181.0,0.004]
[1739266463477,0.5664731,98182.0,98181.0,0.004]
[1739266464575,0.51505798,98182.0,98169.0,0.18330749]
[1739266464874,0.564498,98170.0,98169.0,0.18330749]
[1739266466381,0.565498,98170.0,98169.0,0.18730749]
[1739266466575,0.566498,98170.0,98169.0,0.18730749]
[1739266468172,0.566498,98170.0,98169.0,0.004]
[1739266469681,0.5753989,98170.0,98169.0,0.004]
[1739266475887,0.3717009,98170.0,98169.0,0.004]
[1739266481771,0.0109009,98170.0,98169.0,0.004]
[1739266488877,0.002,98170.0,98169.0,0.004]
[1739266499190,0.001,98170.0,98168.0,0.2037009]
[1739266499390,0.002,98170.0,98169.0,0.001]
[1739266500491,0.001,98170.0,98169.0,0.001]
[1739266500697,0.002,98170.0,98169.0,0.001]
[1739266503504,0.002,98170.0,98169.0,0.18430749]
[1739266507192,0.15451219,98170.0,98169.0,0.001]
[1739266511007,0.18701219,98170.0,98169.0,0.001]
[1739266511208,0.18601219,98170.0,98160.0,0.07891257]
[1739266511509,0.2037133,98163.0,98160.0,0.07834248]
[1739266511709,0.2037133,98163.0,98155.0,0.18330749]
[1739266512305,0.2037183,98161.0,98155.0,0.18330749]
[1739266512504,0.2037183,98161.0,98160.0,0.001]
[1739266512911,0.3608,98162.0,98155.0,0.18330749]
[1739266513108,0.203727,98156.0,98155.0,0.18430749]
[1739266513509,0.2037353,98152.0,98151.0,0.24428531]
[1739266513709,0.3608,98152.0,98144.0,0.30470028]
[1739266513903,0.2037498,98145.0,98144.0,0.30470028]
[1739266515102,0.2037498,98145.0,98126.0,0.3608]
[1739266515103,0.2037621,98139.0,98130.0,0.07834248]
[1739266515307,0.2037717,98135.0,98129.0,0.07834248]
[1739266515606,0.3608,98133.0,98125.0,0.07834248]
[1739266515802,0.3608,98133.0,98124.0,0.4276604]
[1739266516000,0.0315,98132.0,98124.0,0.4265804]
[1739266517206,0.0634,98132.0,98124.0,0.4265804]
[1739266518705,0.2037788,98131.0,98124.0,0.4265804]
[1739266518901,0.0644,98132.0,98124.0,0.4265804]
[1739266519108,0.2037906,98126.0,98124.0,0.4265804]
[1739266520406,0.2047906,98126.0,98124.0,0.4265804]
[1739266521319,0.2057906,98126.0,98124.0,0.4265804]
[1739266523616,0.002,98126.0,98118.0,0.3608]
[1739266528220,0.002,98126.0,98119.0,0.0638]
[1739266528721,0.002,98126.0,98120.0,0.0331]
[1739266529815,0.2057897,98126.0,98120.0,0.0331]
[1739266531112,0.2047897,98126.0,98120.0,0.0331]
[1739266531419,0.2057897,98126.0,98120.0,0.0331]
[1739266532316,0.2037932,98125.0,98120.0,0.0331]
[1739266533423,0.001,98125.0,98123.0,0.2037935]
[1739266533823,0.002,98125.0,98123.0,0.2037935]
[1739266536324,0.002,98125.0,98124.0,0.0302]
[1739266537024,0.002,98125.0,98124.0,0.0627]
[1739266537427,0.00907805,98134.0,98124.0,0.2664933]
[1739266537628,0.0001528,98138.0,98132.0,0.2037753]
[1739266538426,0.001,98134.0,98132.0,0.2037753]
[1739266539623,0.002,98134.0,98132.0,0.2037753]
[1739266539927,0.001,98134.0,98132.0,0.2037753]
[1739266540927,0.002,98134.0,98132.0,0.2037753]
[1739266543435,0.002,98134.0,98126.0,0.3608]
[1739266543823,0.002,98134.0,98126.0,0.5645879]
[1739266544521,0.002,98134.0,98126.0,0.3608]
[1739266544726,0.002,98134.0,98127.0,0.2037855]
[1739266546017,0.001,98134.0,98127.0,0.2037855]
[1739266546219,0.002,98134.0,98128.0,0.2037844]
[1739266546724,0.001,98134.0,98128.0,0.2037844]
[1739266546926,0.002,98134.0,98128.0,0.2037844]
[1739266547329,0.002,98134.0,98133.0,0.3608]
[1739266547635,0.003,98134.0,98133.0,0.3608]
[1739266548426,0.002,98134.0,98133.0,0.3608]
[1739266548626,0.003,98134.0,98133.0,0.3608]
[1739266549338,0.003,98134.0,98133.0,0.001]
[1739266549535,0.003,98134.0,98133.0,0.3618]
[1739266549835,0.05154877,98134.0,98133.0,0.3618]
[1739266550931,0.05154877,98134.0,98133.0,0.001]
[1739266551134,0.05154877,98134.0,98133.0,0.3618]
[1739266557730,0.002,98134.0,98133.0,0.3618]
[1739266558945,0.002,98134.0,98133.0,0.5655746]
[1739266564844,0.05154845,98134.0,98133.0,0.5655746]
[1739266568848,0.15450836,98134.0,98133.0,0.5655746]
[1739266571449,0.15450836,98134.0,98133.0,0.2047746]
[1739266571645,0.15450836,98134.0,98133.0,0.5655746]
[1739266572855,0.002,98134.0,98133.0,0.5655746]
[1739266574447,0.002,98134.0,98133.0,0.2047746]
[1739266574955,0.002,98134.0,98133.0,0.5655746]
[1739266582756,0.0001528,98138.0,98137.0,0.2037663]
[1739266583953,0.0011528,98138.0,98137.0,0.2047663]
[1739266584959,0.0021528,98138.0,98137.0,0.2057663]
[1739266592955,0.0021528,98138.0,98137.0,0.2734063]
[1739266593560,0.13958964,98146.0,98145.0,0.2037497]
[1739266594664,0.15099909,98146.0,98145.0,0.2057497]
[1739266595063,0.15199909,98146.0,98145.0,0.2067497]
[1739266596667,0.19541949,98146.0,98145.0,0.2067497]
[1739266601165,0.01240945,98146.0,98145.0,0.2067497]
[1739266609290,0.01140945,98146.0,98145.0,0.2197497]
[1739266609890,0.01040945,98146.0,98145.0,0.2047497]
[1739266610091,0.01140945,98146.0,98145.0,0.2187497]
[1739266610291,0.01140945,98146.0,98145.0,0.5795497]
[1739266612398,0.01140945,98146.0,98145.0,0.3758]
[1739266613587,0.2037663,98137.0,98135.0,0.04531483]
[1739266613795,0.3608,98136.0,98124.0,0.30516154]
[1739266614089,0.44040946,98146.0,98124.0,0.30516154]
[1739266614090,0.2037734,98134.0,98124.0,0.30516154]
[1739266615081,0.2037753,98133.0,98124.0,0.30516154]
[1739266615396,0.2037774,98132.0,98124.0,0.31216154]
[1739266616393,0.2037774,98132.0,98124.0,0.009]
[1739266617482,0.2037774,98132.0,98124.0,0.002]
[1739266617696,0.2037774,98132.0,98124.0,0.007]
[1739266618195,0.2047774,98132.0,98124.0,0.007]
[1739266618797,0.2057774,98132.0,98124.0,0.007]
[1739266619696,0.04955172,98131.0,98124.0,0.007]
[1739266620596,0.04955172,98131.0,98129.0,0.3608]
[1739266620799,0.05055172,98131.0,98130.0,0.2037809]
[1739266622200,0.05155172,98131.0,98130.0,0.2037809]
[1739266622899,0.002,98131.0,98130.0,0.2037809]
[1739266623400,0.003,98131.0,98130.0,0.2057809]
[1739266623694,0.002,98131.0,98130.0,0.2057809]
[1739266624000,0.002,98131.0,98130.0,0.2117809]
[1739266624001,0.003,98131.0,98130.0,0.2117809]
[1739266628320,0.003,98131.0,98130.0,0.008]
[1739266646813,0.05255122,98131.0,98130.0,0.008]
[1739266650411,0.003,98131.0,98130.0,0.008]
[1739266656806,0.23556126,98131.0,98130.0,0.008]
[1739266660110,0.05255122,98131.0,98130.0,0.008]
[1739266660914,0.05255122,98131.0,98118.0,0.0307]
[1739266661223,0.5645928,98125.0,98118.0,0.0307]
[1739266661423,0.2037955,98123.0,98118.0,0.0307]
[1739266662224,0.3608,98125.0,98118.0,0.0307]
[1739266662518,0.2038017,98120.0,98118.0,0.0317]
[1739266663526,0.2038017,98120.0,98118.0,0.0307]
[1739266663825,0.2048017,98120.0,98118.0,0.0317]
[1739266665126,0.2058017,98120.0,98118.0,0.0317]
[1739266668331,0.21511855,98120.0,98118.0,0.0317]
[1739266672328,0.2038037,98119.0,98118.0,0.0317]
[1739266673725,0.2048037,98119.0,98118.0,0.0317]
[1739266673925,0.2048037,98119.0,98118.0,0.001]
[1739266674229,0.2058037,98119.0,98118.0,0.001]
[1739266677432,0.002,98119.0,98118.0,0.001]
[1739266677830,0.05155733,98119.0,98118.0,0.001]
[1739266680334,0.25536103,98119.0,98118.0,0.001]
[1739266681234,0.002,98119.0,98118.0,0.001]
[1739266683739,0.2058037,98119.0,98118.0,0.001]
[1739266687930,0.2058037,98119.0,98100.0,0.1]
[1739266687931,0.2038328,98105.0,98100.0,0.1311]
[1739266688832,0.3608,98108.0,98100.0,0.1]
[1739266689037,0.3608,98108.0,98092.0,0.30516154]
[1739266689246,0.3608,98108.0,98088.0,0.0313]
[1739266689247,0.07853882,98102.0,98091.0,0.24440182]
[1739266689543,0.3608,98099.0,98091.0,0.24440182]
[1739266690433,0.3608,98099.0,98095.0,0.2038533]
[1739266691038,0.3618,98099.0,98095.0,0.2038533]
[1739266691340,0.3618,98099.0,98096.0,0.2038513]
[1739266692237,0.3628,98099.0,98096.0,0.2038513]
[1739266692639,0.3618,98099.0,98096.0,0.2038513]
[1739266692839,0.3628,98099.0,98096.0,0.2038513]
[1739266693352,0.51494443,98099.0,98096.0,0.2038513]
[1739266696243,0.3628,98099.0,98096.0,0.2038513]
[1739266705761,0.002,98099.0,98098.0,0.2038473]
[1739266708243,0.001,98099.0,98098.0,0.2038473]
[1739266708550,0.002,98099.0,98098.0,0.2038473]
[1739266710862,0.15214443,98112.0,98098.0,0.42756]
[1739266711046,0.15214443,98112.0,98111.0,0.5646202]
[1739266711859,0.15314443,98112.0,98111.0,0.5646202]
[1739266712158,0.00015289,98114.0,98111.0,0.3608]
[1739266712356,0.000683,98132.0,98112.0,0.06684]
[1739266712560,0.00976347,98126.0,98119.0,0.5646036]
[1739266712955,0.000683,98132.0,98119.0,0.5646036]
[1739266713263,0.00986594,98131.0,98119.0,0.5646036]
[1739266713461,0.00015289,98129.0,98119.0,0.5646036]
[1739266714463,0.00015289,98129.0,98127.0,0.2037851]
[1739266715552,0.00015289,98129.0,98127.0,0.5645851]
[1739266715954,0.00115289,98129.0,98127.0,0.5665851]
[1739266716254,0.00315289,98129.0,98127.0,0.5675851]
[1739266722060,0.04955289,98128.0,98127.0,0.5675851]
[1739266723151,0.04955289,98128.0,98127.0,0.5665851]
[1739266723374,0.05155289,98128.0,98127.0,0.5675851]
[1739266724460,0.05155289,98128.0,98127.0,0.5655851]
[1739266724766,0.05255289,98128.0,98127.0,0.5665851]
[1739266733867,0.003,98128.0,98127.0,0.5665851]
[1739266737361,0.003,98128.0,98127.0,0.2057851]
[1739266740873,0.16072249,98128.0,98127.0,0.2057851]
[1739266747066,0.16072249,98128.0,98127.0,1.1857851]
[1739266747967,0.16072249,98128.0,98127.0,0.2057851]
[1739266748473,0.003,98128.0,98127.0,0.2057851]
[1739266750472,0.003,98128.0,98127.0,0.5665851]
[1739266752376,0.003,98128.0,98127.0,0.3628]
[1739266752967,0.003,98128.0,98127.0,0.002]
[1739266753167,0.0337,98128.0,98127.0,0.002]
[1739266761975,0.23557078,98128.0,98127.0,0.002]
[1739266765687,0.05255367,98128.0,98127.0,0.002]
[1739266769386,0.003,98128.0,98127.0,0.002]
[1739266784303,0.15204208,98128.0,98127.0,0.002]
[1739266792097,0.003,98128.0,98127.0,0.002]
[1739266795602,0.0331,98128.0,98127.0,0.002]
[1739266802113,0.40153733,98128.0,98127.0,0.002]
[1739266804910,0.37143733,98128.0,98127.0,0.002]
[1739266805508,0.26537242,98128.0,98127.0,0.002]
[1739266806717,0.26523378,98128.0,98127.0,0.002]
[1739266809010,0.21568011,98128.0,98127.0,0.002]
[1739266812920,0.36700573,98128.0,98127.0,0.002]
[1739266815722,0.36700573,98128.0,98127.0,0.04293964]
[1739266817925,0.36700573,98128.0,98127.0,0.04294271]
[1739266819316,0.36700573,98128.0,98127.0,0.04294057]
[1739266819933,0.05241503,98128.0,98127.0,0.04294057]
[1739266821426,0.05241503,98128.0,98127.0,0.04297064]
[1739266823130,0.00286136,98128.0,98127.0,0.04297064]
[1739266823521,0.00286136,98128.0,98127.0,0.0325]
[1739266826736,0.05241503,98128.0,98127.0,0.0325]
[1739266831026,0.25619993,98128.0,98127.0,0.0325]
[1739266831231,0.3536872,98128.0,98127.0,0.0325]
[1739266831734,0.3536872,98128.0,98127.0,0.04300069]
[1739266834231,0.3536872,98128.0,98127.0,0.04300257]
[1739266834531,0.3536872,98128.0,98127.0,0.01250257]
[1739266834730,0.20664626,98128.0,98127.0,0.01250257]
[1739266835740,0.20664626,98128.0,98127.0,0.01257428]
[1739266838545,0.20664626,98128.0,98127.0,0.002]
[1739266846547,0.20664626,98128.0,98127.0,0.01269524]
[1739266848152,0.20664626,98128.0,98127.0,0.002]
[1739266848354,0.20664626,98128.0,98127.0,0.01272733]
[1739266850452,0.20664626,98128.0,98127.0,0.01264404]
[1739266850647,0.35041475,98128.0,98127.0,0.01264404]
[1739266851949,0.14662985,98128.0,98107.0,0.00152872]
[1739266852155,0.2038059,98118.0,98110.0,0.07869171]
[1739266852754,0.2038126,98115.0,98110.0,0.07869171]
[1739266852953,0.2038126,98115.0,98110.0,0.00015289]
[1739266853252,0.2038126,98115.0,98113.0,0.0371]
[1739266853663,0.2038126,98115.0,98113.0,0.006]
[1739266853957,0.2048126,98115.0,98113.0,0.006]
[1739266854351,0.2058126,98115.0,98113.0,0.006]
[1739266856261,0.21572944,98115.0,98113.0,0.006]
[1739266857365,0.2038243,98109.0,98108.0,0.18350356]
[1739266858265,0.2038243,98109.0,98107.0,0.00152872]
[1739266858668,0.2048243,98109.0,98108.0,0.004]
[1739266859361,0.2058243,98109.0,98107.0,0.00552872]
[1739266860066,0.2058243,98109.0,98107.0,0.00152872]
[1739266860361,0.2058243,98109.0,98108.0,0.004]
[1739266861666,0.2058243,98109.0,98107.0,0.00152872]
[1739266862964,0.2048243,98109.0,98107.0,0.00152872]
[1739266863171,0.2058243,98109.0,98107.0,0.00152872]
[1739266863472,0.2048243,98109.0,98107.0,0.00152872]
[1739266863670,0.2058243,98109.0,98107.0,0.00152872]
[1739266871672,0.002,98109.0,98107.0,0.00152872]
[1739266874585,0.2038264,98108.0,98107.0,0.00152872]
[1739266875674,0.2058264,98108.0,98107.0,0.00152872]
[1739266876072,0.2038371,98103.0,98101.0,0.10307989]
[1739266877273,0.2048371,98103.0,98101.0,0.10307989]
[1739266877480,0.2058371,98103.0,98101.0,0.10307989]
[1739266881775,0.2158968,98103.0,98101.0,0.10307989]
[1739266883786,0.2158968,98103.0,98093.0,0.18350356]
[1739266884684,0.2038493,98097.0,98093.0,0.18350356]
[1739266885685,0.2038493,98097.0,98092.0,0.24434912]
[1739266885884,0.2048493,98097.0,98092.0,0.24434912]
[1739266886289,0.2058493,98097.0,98092.0,0.24434912]
[1739266886985,0.2038576,98093.0,98092.0,0.24434912]
[1739266887887,0.5646576,98093.0,98092.0,0.24434912]
[1739266888082,0.203868,98088.0,98087.0,0.30516154]
[1739266888284,0.2038805,98082.0,98081.0,0.23053382]
[1739266888490,0.5646805,98082.0,98081.0,0.2184799]
[1739266888993,0.2038867,98079.0,98078.0,0.18341525]
[1739266890383,0.2048867,98079.0,98078.0,0.18341525]
[1739266891687,0.2058867,98079.0,98078.0,0.18341525]
[1739266893390,0.2058867,98079.0,98063.0,0.2039193]
[1739266893391,0.2039101,98068.0,98063.0,0.2039193]
[1739266893592,0.3608,98065.0,98063.0,0.2039193]
[1739266894093,0.5647163,98065.0,98063.0,0.2039193]
[1739266894294,0.5647163,98065.0,98061.0,0.0332]
[1739266894690,0.5657163,98065.0,98061.0,0.0332]
[1739266894889,0.203919,98064.0,98061.0,0.0332]
[1739266895897,0.37224234,98065.0,98061.0,0.0332]
[1739266896085,0.37324234,98065.0,98061.0,0.0332]
[1739266896290,0.002,98065.0,98063.0,0.2039197]
[1739266896488,0.001,98065.0,98064.0,0.01275141]
[1739266897594,0.2179,98078.0,98064.0,0.01275141]
[1739266897796,0.2038858,98080.0,98068.0,0.07853882]
[1739266897997,0.21382243,98080.0,98069.0,0.0312]
[1739266898193,0.203889,98078.0,98069.0,0.0312]
[1739266898398,0.5128645,98082.0,98069.0,0.0312]
[1739266898598,0.51234449,98082.0,98069.0,0.0312]
[1739266898988,0.001,98080.0,98072.0,0.07853882]
[1739266899188,0.2038921,98077.0,98072.0,0.07853882]
[1739266899388,0.2038921,98077.0,98069.0,0.0312]
[1739266900298,0.2038955,98075.0,98069.0,0.0312]
[1739266901094,0.08053882,98080.0,98069.0,0.0312]
[1739266901400,0.08053882,98080.0,98070.0,0.07853882]
[1739266901997,0.07853882,98080.0,98070.0,0.07853882]
[1739266902198,0.002,98075.0,98070.0,0.07853882]
[1739266902400,0.002,98075.0,98069.0,0.0312]
[1739266902596,0.002,98075.0,98061.0,0.0332]
[1739266902800,0.07853882,98071.0,98062.0,0.01275144]
[1739266903006,0.07853882,98071.0,98061.0,0.0332]
[1739266903299,0.002,98075.0,98062.0,0.0127515]
[1739266903500,0.003,98075.0,98061.0,0.0332]
[1739266903703,0.001,98075.0,98062.0,0.0127515]
[1739266903897,0.001,98075.0,98061.0,0.0332]
[1739266904097,0.001,98075.0,98065.0,0.07853882]
[1739266904497,0.002,98075.0,98065.0,0.07853882]
[1739266904899,0.001,98075.0,98065.0,0.07853882]
[1739266905107,0.001,98071.0,98065.0,0.07853882]
[1739266905308,0.001,98071.0,98063.0,0.2039192]
[1739266905602,0.002,98075.0,98063.0,0.2039192]
[1739266905808,0.003,98075.0,98063.0,0.2039192]
[1739266906108,0.002,98075.0,98063.0,0.2039192]
[1739266906310,0.001,98071.0,98063.0,0.2039192]
[1739266906701,0.002,98075.0,98063.0,0.2039192]
[1739266907006,0.002,98071.0,98063.0,0.2039192]
[1739266907809,0.2048959,98075.0,98063.0,0.2039192]
[1739266908004,0.2058959,98075.0,98063.0,0.2039192]
[1739266908700,0.001,98071.0,98063.0,0.2039192]
[1739266908913,0.002,98071.0,98063.0,0.2039192]
[1739266909404,0.001,98071.0,98063.0,0.2039192]
[1739266909609,0.001,98071.0,98068.0,0.2039094]
[1739266909806,0.001,98071.0,98069.0,0.032]
[1739266910305,0.002,98071.0,98069.0,0.2359071]
[1739266910502,0.001,98071.0,98069.0,0.2359071]
[1739266911510,0.003,98071.0,98069.0,0.2359071]
[1739266913909,0.003,98071.0,98069.0,0.032]
[1739266914317,0.01303488,98071.0,98066.0,0.3608]
[1739266914612,0.2069034,98071.0,98066.0,0.3608]
[1739266915311,0.2059034,98071.0,98066.0,0.3608]
[1739266915513,0.003,98071.0,98066.0,0.3608]
[1739266916915,0.003,98071.0,98061.0,0.0332]
[1739266917108,0.5647162,98065.0,98061.0,0.0332]
[1739266918916,0.04958651,98064.0,98061.0,0.0332]
[1739266919816,0.2039199,98063.0,98061.0,0.0332]
[1739266921220,0.06071115,98064.0,98049.0,0.00152979]
[1739266921413,0.2039453,98051.0,98049.0,0.00152979]
[1739266921912,0.3608,98052.0,98049.0,0.00152979]
[1739266922615,0.001,98051.0,98049.0,0.00152979]
[1739266922814,0.001,98051.0,98039.0,0.203969]
[1739266923222,0.11986009,98050.0,98038.0,0.3608]
[1739266923521,0.2039477,98050.0,98038.0,0.3608]
[1739266924318,0.37304383,98052.0,98038.0,0.3608]
[1739266924526,0.37152382,98052.0,98038.0,0.3608]
[1739266924718,0.001,98051.0,98038.0,0.3608]
[1739266925118,0.001,98050.0,98038.0,0.3608]
[1739266925319,0.002,98050.0,98038.0,0.3608]
[1739266925619,0.12186009,98050.0,98038.0,0.3608]
[1739266925817,0.11986009,98050.0,98038.0,0.3608]
[1739266926421,0.1530507,98050.0,98038.0,0.3608]
[1739266928123,0.1540507,98050.0,98038.0,0.3608]
[1739266928621,0.27391079,98050.0,98038.0,0.3608]
[1739266929225,0.27391079,98050.0,98038.0,0.5647716]
[1739266929823,0.12186009,98050.0,98038.0,0.5647716]
[1739266930731,0.002,98050.0,98038.0,0.3608]
[1739266930915,0.002,98050.0,98038.0,0.5647711]
[1739266931121,0.002,98050.0,98040.0,0.11986009]
[1739266931320,0.002,98050.0,98038.0,0.5657711]
[1739266931525,0.002,98050.0,98038.0,0.5647711]
[1739266931930,0.002,98050.0,98039.0,0.2039693]
[1739266932733,0.3608,98047.0,98039.0,0.2039693]
[1739266934428,0.3618,98047.0,98039.0,0.2039693]
[1739266935233,0.3628,98047.0,98039.0,0.2039693]
[1739266937339,0.3628,98047.0,98037.0,0.0636]
[1739266937643,0.3628,98047.0,98041.0,0.2039642]
[1739266939034,0.002,98047.0,98045.0,0.2039554]
[1739266939247,0.001,98047.0,98045.0,0.2039554]
[1739266939436,0.002,98047.0,98045.0,0.2039554]
[1739266941142,0.00972382,98052.0,98049.0,0.2039481]
[1739266941345,0.18246084,98057.0,98049.0,0.2039481]
[1739266941544,0.18246084,98057.0,98047.0,0.48066009]
[1739266941844,0.18246084,98057.0,98054.0,0.2039368]
[1739266942042,0.18246084,98057.0,98055.0,0.0612]
[1739266942837,0.18346084,98057.0,98055.0,0.0612]
[1739266943042,0.18346084,98057.0,98056.0,0.3608]
[1739266944438,0.18446084,98057.0,98056.0,0.3608]
[1739266944844,0.18346084,98057.0,98056.0,0.3608]
[1739266945140,0.18446084,98057.0,98056.0,0.3608]
[1739266945944,0.18346084,98057.0,98056.0,0.3608]
[1739266946150,0.002,98057.0,98056.0,0.3608]
[1739266946945,0.001,98057.0,98056.0,0.3608]
[1739266947146,0.003,98057.0,98056.0,0.3608]
[1739266961456,0.003,98057.0,98055.0,0.6259361]
[1739266962461,0.003,98057.0,98043.0,0.3608]
[1739266962761,0.003,98057.0,98044.0,0.0302]
[1739266962963,0.0313,98056.0,98044.0,0.0302]
[1739266963357,0.0313,98056.0,98046.0,0.11986009]
[1739266964160,0.0323,98056.0,98046.0,0.11986009]
[1739266965061,0.0333,98056.0,98046.0,0.11986009]
[1739266965961,0.0343,98056.0,98046.0,0.11986009]
[1739266967651,0.15200592,98048.0,98046.0,0.11986009]
[1739266967851,0.15200592,98048.0,98045.0,0.2039567]
[1739266969362,0.15400592,98048.0,98045.0,0.2039567]
[1739266970256,0.15500592,98048.0,98045.0,0.2039567]
[1739266970453,0.003,98048.0,98045.0,0.2039567]
[1739266970758,0.002,98048.0,98045.0,0.2039567]
[1739266970962,0.003,98048.0,98045.0,0.2039567]
[1739266973657,0.01278076,98048.0,98045.0,0.2039567]
[1739266973861,0.01278076,98048.0,98044.0,0.0302]
[1739266974161,0.01278076,98048.0,98043.0,0.3608]
[1739266975160,0.01278076,98048.0,98035.0,0.0305]
[1739266975756,0.01078076,98048.0,98035.0,0.0305]
[1739266975962,0.01278076,98048.0,98035.0,0.0305]
[1739266976362,0.01178076,98048.0,98035.0,0.0305]
[1739266976562,0.01278076,98048.0,98035.0,0.0305]
[1739266976772,0.15200592,98047.0,98035.0,0.0305]
[1739266977064,0.18240592,98047.0,98033.0,0.3608]
[1739266977270,0.2039576,98045.0,98033.0,0.3608]
[1739266979865,0.2059576,98045.0,98033.0,0.3608]
[1739266980773,0.15200592,98038.0,98033.0,0.3608]
[1739266982270,0.15300592,98038.0,98033.0,0.3608]
[1739266983672,0.15300592,98038.0,98033.0,0.5647807]
[1739266983858,0.15400592,98038.0,98033.0,0.5647807]
[1739266985365,0.15400592,98038.0,98034.0,0.2039786]
[1739266985565,0.15400592,98038.0,98036.0,0.2039739]
[1739266985978,0.15400592,98038.0,98037.0,0.0631]
[1739266987476,0.15400592,98038.0,98037.0,0.0955]
[1739266988272,0.15300592,98038.0,98037.0,0.0955]
[1739266988473,0.15400592,98038.0,98037.0,0.0955]
[1739266989270,0.15400592,98038.0,98037.0,0.16978]
[1739266991181,0.002,98038.0,98037.0,0.16978]
[1739266991579,0.002,98038.0,98037.0,0.16954]
[1739266992980,0.002,98038.0,98037.0,0.0955]
[1739266999785,0.15200592,98043.0,98042.0,0.2039634]
[1739266999987,0.15200592,98043.0,98042.0,0.5647634]
[1739267000997,0.15300592,98043.0,98042.0,0.5647634]
[1739267001685,0.002,98043.0,98042.0,0.5647634]
[1739267002293,0.18246084,98055.0,98054.0,0.2039385]
[1739267002584,0.18246084,98055.0,98054.0,0.5647385]
[1739267003783,0.18346084,98055.0,98054.0,0.5657385]
[1739267004387,0.18546084,98055.0,98054.0,0.5667385]
[1739267005688,0.003,98055.0,98054.0,0.5667385]
[1739267006582,0.003,98055.0,98054.0,0.2059385]
[1739267006782,0.003,98055.0,98054.0,0.5667385]
[1739267016884,0.003,98055.0,98054.0,0.6420585]
[1739267017289,0.003,98055.0,98054.0,0.5667385]
[1739267018493,0.003,98055.0,98054.0,0.3628]
[1739267018688,0.003,98055.0,98054.0,0.5667385]
[1739267030094,0.003,98055.0,98054.0,0.3628]
[1739267033900,0.0525872,98055.0,98054.0,0.3628]
[1739267034500,0.0525872,98055.0,98054.0,0.002]
[1739267038205,0.18933619,98055.0,98054.0,0.002]
[1739267038701,0.18933619,98055.0,98054.0,0.00024927]
[1739267040806,0.0525872,98055.0,98054.0,0.00024927]
[1739267048800,0.190737,98055.0,98054.0,0.00024927]
[1739267049408,0.408637,98055.0,98054.0,0.00024927]
[1739267049610,0.2039489,98049.0,98040.0,0.07868012]
[1739267050919,0.2049489,98049.0,98040.0,0.07968012]
[1739267051610,0.001,98049.0,98044.0,0.2039585]
[1739267051910,0.002,98049.0,98045.0,0.0329]
[1739267052218,0.002,98049.0,98046.0,0.2039539]
[1739267053114,0.001,98049.0,98046.0,0.2039539]
[1739267053313,0.002,98049.0,98045.0,0.0666]
[1739267054019,0.003,98049.0,98045.0,0.0666]
[1739267054410,0.003,98049.0,98046.0,0.2039538]
[1739267054717,0.003,98049.0,98047.0,0.2039516]
[1739267055613,0.0495872,98048.0,98047.0,0.2039516]
[1739267056017,0.0495872,98048.0,98047.0,0.2059516]
[1739267056927,0.0495872,98048.0,98019.0,0.09376348]
[1739267056928,0.8646272,98048.0,98019.0,0.09376348]
[1739267057228,0.2040488,98001.0,97999.0,0.002]
[1739267057415,0.5648488,98001.0,97999.0,0.002]
[1739267057615,0.2040406,98005.0,97999.0,0.002]
[1739267057917,0.5648478,98002.0,97999.0,0.002]
[1739267058111,0.2040478,98002.0,97999.0,0.002]
[1739267058310,0.2040478,98002.0,98000.0,0.1304]
[1739267059620,0.2050478,98002.0,98000.0,0.1304]
[1739267060212,0.2060478,98002.0,98000.0,0.1]
[1739267063523,0.07556,98001.0,98000.0,0.1]
[1739267064022,0.37556,98001.0,98000.0,0.1]
[1739267064422,0.59346,98001.0,98000.0,0.1]
[1739267065417,0.62756,98001.0,98000.0,0.1]
[1739267065818,0.62856,98001.0,98000.0,0.1]
[1739267066526,0.41066,98001.0,98000.0,0.1]
[1739267067022,0.3351,98001.0,98000.0,0.1]
[1739267067219,0.07748,98001.0,98000.0,0.1]
[1739267067521,0.002,98001.0,98000.0,0.1]
[1739267070317,0.3608,98003.0,98001.0,0.2040488]
[1739267071626,0.01041828,98010.0,98009.0,0.2040321]
[1739267072125,0.01041828,98010.0,98000.0,0.21165071]
[1739267072326,0.002,98003.0,98002.0,0.2040467]
[1739267072927,0.001,98003.0,98002.0,0.2040467]
[1739267073126,0.01241828,98010.0,98009.0,0.2050321]
[1739267073525,0.01141828,98010.0,98009.0,0.2050321]
[1739267073925,0.01041828,98010.0,98009.0,0.2040321]
[1739267075521,0.01141828,98010.0,98009.0,0.2040321]
[1739267076131,0.2040435,98004.0,98000.0,0.09162928]